bitfinex-derivatives/quotes_SOLF0:USTF0_20250818
["timestamp","ask_amount","ask_price","bid_price","bid_amount"]
[1755481807060,2.94,187.62,187.6,2.85]
[1755481807262,2.94,187.73,187.55,2.85]
[1755481807460,2.94,187.71,187.62,2.85]
[1755481808164,2.94,187.68,187.65,2.85]
[1755481808376,2.94,187.7,187.67,2.85]
[1755481808571,2.94,187.79,187.68,2.85]
[1755481808870,2.94,187.77,187.68,2.85]
[1755481809069,5.3229,187.75,187.7,5.3238]
[1755481809267,2.94,187.74,187.71,2.85]
[1755481809468,2.94,187.74,187.67,2.85]
[1755481810763,8.2629,187.74,187.71,2.85]
[1755481811171,2.94,187.73,187.71,2.85]
[1755481812173,2.94,187.72,187.69,2.85]
[1755481812362,2.94,187.71,187.69,2.85]
[1755481812566,2.94,187.7,187.69,2.85]
[1755481812772,2.94,187.69,187.66,2.85]
[1755481812970,2.94,187.69,187.67,2.85]
[1755481813471,8.2646,187.69,187.67,2.85]
[1755481813862,8.2647,187.68,187.61,2.85]
[1755481814068,2.94,187.68,187.61,2.85]
[1755481814666,8.2646,187.68,187.64,2.85]
[1755481814870,8.2646,187.68,187.65,2.85]
[1755481815073,8.2646,187.68,187.66,2.85]
[1755481815274,8.73481457,187.78,187.59,2.85]
[1755481815469,2.94,187.75,187.59,2.85]
[1755481815674,2.94,187.73,187.59,2.85]
[1755481815859,2.94,187.73,187.58,358.08]
[1755481815860,3.90320673,187.72,187.58,358.08]
[1755481816061,8.32961795,187.76,187.58,358.08]
[1755481816062,2.94,187.7,187.59,2.85]
[1755481816672,8.2654,187.66,187.59,2.85]
[1755481817475,5.3255,187.65,187.61,5.3266]
[1755481817772,3.08,187.75,187.59,2.85]
[1755481817973,8.75289731,187.79,187.59,8.32961795]
[1755481817974,3.08,187.73,187.59,8.32961795]
[1755481818275,3.08,187.71,187.6,2.85]
[1755481818464,3.89084599,187.7,187.6,2.85]
[1755481818667,3.08,187.71,187.6,2.85]
[1755481818668,5.3255,187.65,187.61,5.3264]
[1755481818861,3.08,187.65,187.62,2.85]
[1755481819069,3.08,187.65,187.63,2.85]
[1755481819275,8.4055,187.65,187.63,2.85]
[1755481819469,3.08,187.64,187.6,2.85]
[1755481819669,3.08,187.64,187.61,2.85]
[1755481819870,3.08,187.64,187.63,2.85]
[1755481820679,3.08,187.75,187.63,2.85]
[1755481820974,3.08,187.73,187.59,144.95]
[1755481821165,3.08,187.71,187.6,2.85]
[1755481821371,3.08,187.76,187.62,8.1763]
[1755481821574,3.08,187.74,187.62,2.85]
[1755481821873,3.08,187.72,187.62,2.85]
[1755481822073,3.08,187.65,187.63,2.85]
[1755481822476,3.08,187.64,187.61,5.3265]
[1755481822678,3.08,187.63,187.61,8.1765]
[1755481822976,3.08,187.76,187.6,2.85]
[1755481823178,3.08,187.74,187.6,2.85]
[1755481823375,3.08,187.72,187.6,2.85]
[1755481823568,3.08,187.7,187.6,2.85]
[1755481823880,3.08,187.64,187.63,2.85]
[1755481824173,3.08,187.64,187.59,142.1]
[1755481824378,3.08,187.64,187.62,2.85]
[1755481825867,8.32961795,187.73,187.6,2.85]
[1755481826071,3.08,187.71,187.6,2.85]
[1755481826371,3.08,187.6,187.52,2.85]
[1755481826578,3.08,187.6,187.51,357.96]
[1755481826579,3.08,187.6,187.54,2.85]
[1755481826966,3.08,187.57,187.55,2.85]
[1755481827975,3.08,187.55,187.54,2.85]
[1755481828176,3.08,187.55,187.53,144.87]
[1755481828377,3.08,187.53,187.51,2.85]
[1755481828977,3.08,187.52,187.51,2.85]
[1755481829873,3.08,187.52,187.48,5.3303]
[1755481830076,3.08,187.52,187.5,2.85]
[1755481830477,8.32961795,187.65,187.48,2.85]
[1755481830478,3.08,187.64,187.48,2.85]
[1755481830682,3.08,187.62,187.48,2.85]
[1755481830881,8.32961795,187.65,187.47,141.98]
[1755481830882,3.08,187.53,187.47,141.98]
[1755481831084,3.08,187.53,187.48,2.85]
[1755481831480,3.08,187.53,187.5,2.85]
[1755481831685,3.08,187.53,187.51,2.85]
[1755481832979,3.08,187.53,187.49,5.3299]
[1755481833184,3.08,187.64,187.52,2.85]
[1755481833484,3.08,187.55,187.53,2.85]
[1755481833684,8.32961795,187.65,187.53,2.85]
[1755481833685,3.08,187.54,187.53,2.85]
[1755481834086,8.4083,187.55,187.53,2.85]
[1755481834979,3.08,187.67,187.51,2.85]
[1755481835184,357.98,187.71,187.51,2.85]
[1755481835185,3.08,187.65,187.51,2.85]
[1755481835381,5.3271,187.6,187.55,2.85]
[1755481835582,3.08,187.65,187.55,2.85]
[1755481835887,3.08,187.63,187.52,5.3291]
[1755481836187,3.08,187.55,187.48,2.85]
[1755481836385,3.08,187.57,187.48,2.85]
[1755481836578,3.08,187.59,187.48,2.85]
[1755481836784,3.08,187.59,187.52,5.3289]
[1755481836986,3.08,187.59,187.5,8.32961795]
[1755481836987,3.08,187.59,187.53,2.85]
[1755481837286,3.08,187.55,187.52,2.85]
[1755481837486,3.08,187.54,187.52,2.85]
[1755481837688,3.08,187.66,187.48,2.85]
[1755481837887,3.08,187.64,187.48,2.85]
[1755481838087,5.3275,187.58,187.48,2.85]
[1755481838387,3.08,187.57,187.54,5.3285]
[1755481838584,5.3277,187.57,187.55,2.85]
[1755481838788,3.08,187.64,187.51,2.85]
[1755481839086,3.08,187.62,187.53,2.85]
[1755481839277,3.08,187.56,187.54,2.85]
[1755481839985,3.08,187.55,187.54,2.85]
[1755481840688,3.08,187.61,187.51,2.85]
[1755481840985,5.46873657,187.62,187.47,147.36873657]
[1755481841189,3.87890801,187.61,187.47,147.36873657]
[1755481841389,5.46873657,187.62,187.47,147.36873657]
[1755481841390,3.08,187.6,187.48,2.85]
[1755481841591,3.08,187.56,187.48,2.85]
[1755481841790,3.08,187.56,187.51,2.85]
[1755481841992,5.3289,187.54,187.52,2.85]
[1755481842194,3.08,187.53,187.52,2.85]
[1755481842487,3.08,187.57,187.52,2.85]
[1755481843086,3.08,187.6,187.53,5.46873657]
[1755481843288,5.46873657,187.69,187.56,5.46873657]
[1755481843496,3.08,187.67,187.57,2.85]
[1755481843793,3.08,187.67,187.58,8.1773]
[1755481844199,3.08,187.61,187.59,2.85]
[1755481844392,3.08,187.6,187.59,2.85]
[1755481844697,3.08,187.57,187.5,5.46873657]
[1755481844996,3.08,187.57,187.4,62.0]
[1755481844997,5.46873657,187.56,187.39,2.85]
[1755481845192,13.7349,187.58,187.4,2.85]
[1755481845193,3.08,187.47,187.4,2.85]
[1755481845789,3.08,187.4,187.38,2.85]
[1755481845997,3.08,187.39,187.35,2.85]
[1755481846188,3.08,187.38,187.35,2.85]
[1755481846395,3.08,187.36,187.33,2.85]
[1755481846596,3.08,187.38,187.35,2.85]
[1755481847397,3.08,187.38,187.36,2.85]
[1755481848995,3.1,187.47,187.33,3.04]
[1755481849390,5.3309,187.46,187.33,3.04]
[1755481849591,3.1,187.45,187.33,3.04]
[1755481849792,3.1,187.45,187.35,8.35045126]
[1755481849995,3.1,187.54,187.36,3.04]
[1755481850195,3.1,187.52,187.36,3.04]
[1755481850998,3.1,187.52,187.4,8.3725]
[1755481851493,3.1,187.52,187.4,3.04]
[1755481851692,3.1,187.45,187.36,3.04]
[1755481851893,3.1,187.48,187.36,3.04]
[1755481852206,5.3292,187.52,187.47,3.04]
[1755481852503,3.1,187.57,187.44,3.04]
[1755481852802,3.1,187.57,187.39,8.35045126]
[1755481852803,3.1,187.48,187.41,3.04]
[1755481853988,3.1,187.47,187.41,3.04]
[1755481854193,3.1,187.47,187.41,8.3721]
[1755481854389,3.1,187.47,187.41,3.04]
[1755481854796,3.1,187.47,187.41,8.3722]
[1755481854993,3.1,187.47,187.39,3.04]
[1755481855797,3.1,187.43,187.39,3.04]
[1755481856004,3.1,187.41,187.39,3.04]
[1755481857096,5.3321,187.42,187.36,3.04]
[1755481857303,3.1,187.39,187.36,3.04]
[1755481858403,3.1,187.39,187.36,5.3336]
[1755481858600,3.1,187.39,187.37,3.04]
[1755481858798,8.35045126,187.54,187.33,11.39045126]
[1755481858998,5.3306,187.47,187.39,5.3326]
[1755481859203,3.1,187.46,187.4,3.04]
[1755481859805,3.1,187.45,187.42,8.3719]
[1755481860107,3.1,187.45,187.44,3.04]
[1755481860302,3.1,187.57,187.44,3.04]
[1755481860501,3.1,187.55,187.44,3.04]
[1755481860806,8.4285,187.55,187.48,5.3302]
[1755481860996,3.1,187.54,187.42,3.04]
[1755481861403,3.1,187.52,187.43,5.3317]
[1755481861608,3.1,187.52,187.42,3.04]
[1755481861802,5.3304,187.48,187.42,3.04]
[1755481862197,3.1,187.56,187.39,8.35045126]
[1755481862401,15.9761,187.66,187.39,8.35045126]
[1755481862402,5.3286,187.54,187.4,3.04]
[1755481862597,3.1,187.53,187.4,3.04]
[1755481863008,3.1,187.52,187.4,3.04]
[1755481863607,3.1,187.52,187.47,5.3303]
[1755481863803,3.1,187.51,187.48,3.04]
[1755481864003,3.1,187.51,187.49,3.04]
[1755481864210,5.329,187.53,187.39,70.35045126]
[1755481864409,3.1,187.52,187.4,3.04]
[1755481864808,3.1,187.5,187.4,3.04]
[1755481865212,3.1,187.62,187.4,3.04]
[1755481865509,3.1,187.6,187.48,3.04]
[1755481865709,5.79481457,187.67,187.48,3.04]
[1755481865911,366.67045126,187.68,187.48,3.04]
[1755481865912,3.1,187.58,187.48,3.04]
[1755481866413,3.1,187.67,187.52,3.04]
[1755481866710,3.1,187.65,187.52,3.04]
[1755481866908,3.1,187.63,187.52,3.04]
[1755481867116,3.1,187.61,187.56,5.328]
[1755481867301,3.1,187.62,187.56,3.04]
[1755481867625,3.1,187.73,187.57,3.04]
[1755481867805,3.1,187.65,187.58,5.3272]
[1755481868109,3.1,187.65,187.57,3.04]
[1755481868506,3.1,187.64,187.57,3.04]
[1755481869012,3.1,187.75,187.51,3.04]
[1755481869211,3.1,187.73,187.51,3.04]
[1755481869406,3.88435593,187.72,187.51,3.04]
[1755481869709,3.1,187.65,187.51,3.04]
[1755481870203,3.1,187.64,187.5,13.77513861]
[1755481870409,3.1,187.64,187.51,3.04]
[1755481870611,5.3272,187.6,187.52,5.3289]
[1755481870806,3.1,187.59,187.51,3.04]
[1755481871205,3.1,187.56,187.51,3.04]
[1755481871401,3.1,187.54,187.51,3.04]
[1755481871601,5.3289,187.53,187.46,5.3306]
[1755481871810,3.1,187.5,187.47,3.04]
[1755481872012,3.1,187.5,187.48,3.04]
[1755481872309,3.1,187.52,187.41,3.04]
[1755481872906,3.1,187.52,187.5,3.04]
[1755481873104,3.1,187.55,187.41,3.04]
[1755481873306,3.1,187.55,187.48,8.3701]
[1755481873507,3.1,187.55,187.48,3.04]
[1755481873906,3.1,187.66,187.5,3.04]
[1755481874215,5.3284,187.55,187.5,3.04]
[1755481874510,3.1,187.53,187.5,3.04]
[1755481874705,5.3291,187.53,187.48,3.04]
[1755481874910,3.1,187.66,187.48,3.04]
[1755481875119,3.1,187.64,187.48,3.04]
[1755481875410,3.1,187.54,187.49,5.33]
[1755481875611,3.1,187.54,187.48,3.04]
[1755481875911,13.77513861,187.67,187.48,3.04]
[1755481875912,3.1,187.52,187.48,3.04]
[1755481876101,5.79481457,187.63,187.45,3.04]
[1755481876301,3.1,187.61,187.45,3.04]
[1755481876506,3.1,187.59,187.45,3.04]
[1755481876706,3.1,187.57,187.45,3.04]
[1755481876903,3.1,187.52,187.45,3.04]
[1755481877103,3.1,187.54,187.51,3.04]
[1755481877310,3.1,187.53,187.51,3.04]
[1755481877702,3.1,187.63,187.41,3.04]
[1755481877908,3.04,187.61,187.41,3.04]
[1755481878108,3.04,187.52,187.47,5.3306]
[1755481878308,3.91256147,187.6,187.47,5.3306]
[1755481878309,3.04,187.62,187.47,5.3306]
[1755481878508,3.91256123,187.61,187.47,8.3206]
[1755481878709,3.04,187.59,187.48,5.3302]
[1755481878909,3.04,187.57,187.48,5.3302]
[1755481879111,3.04,187.57,187.47,2.99]
[1755481879716,3.04,187.52,187.47,2.99]
[1755481879911,3.04,187.51,187.48,2.99]
[1755481880103,359.14822277,187.65,187.41,2.99]
[1755481880104,3.04,187.54,187.41,2.99]
[1755481881112,3.04,187.64,187.41,2.99]
[1755481881317,3.04,187.62,187.41,2.99]
[1755481881615,3.04,187.6,187.41,2.99]
[1755481881912,3.04,187.6,187.53,2.99]
[1755481882915,3.04,187.58,187.53,2.99]
[1755481883115,3.04,187.58,187.54,2.99]
[1755481883315,3.04,187.57,187.55,2.99]
[1755481883519,3.04,187.58,187.54,2.99]
[1755481883818,3.04,187.57,187.56,2.99]
[1755481884010,358.22,187.65,187.56,2.99]
[1755481884217,3.04,187.63,187.56,2.99]
[1755481885517,3.04,187.7,187.56,2.99]
[1755481885719,3.04,187.68,187.56,2.99]
[1755481885920,3.04,187.66,187.56,2.99]
[1755481886121,5.3268,187.61,187.56,2.99]
[1755481886309,3.04,187.59,187.56,2.99]
[1755481886513,3.04,187.7,187.51,2.99]
[1755481886716,3.04,187.64,187.51,2.99]
[1755481888120,3.04,187.64,187.5,13.77513861]
[1755481888121,3.04,187.64,187.62,2.99]
[1755481888323,358.2,187.75,187.63,2.99]
[1755481888620,3.04,187.65,187.63,2.99]
[1755481888820,358.2,187.75,187.61,5.3266]
[1755481889020,3.04,187.64,187.62,2.99]
[1755481889418,3.04,187.69,187.64,8.3157]
[1755481889622,3.04,187.67,187.65,2.99]
[1755481889920,3.04,187.74,187.56,2.99]
[1755481890125,3.90915819,187.73,187.56,2.99]
[1755481890326,5.3249,187.68,187.58,8.32391966]
[1755481890518,3.04,187.67,187.59,2.99]
[1755481891417,3.04,187.66,187.63,2.99]
[1755481891724,3.04,187.65,187.63,2.99]
[1755481892119,5.3253,187.66,187.58,8.32391966]
[1755481892426,3.04,187.65,187.59,2.99]
[1755481893021,358.2,187.75,187.54,2.99]
[1755481893022,3.04,187.72,187.54,2.99]
[1755481893316,3.90887277,187.71,187.57,2.99]
[1755481893517,3.04,187.69,187.57,2.99]
[1755481893824,3.04,187.67,187.57,2.99]
[1755481894027,3.04,187.74,187.54,2.99]
[1755481894325,3.04,187.72,187.54,2.99]
[1755481894521,3.04,187.7,187.59,2.99]
[1755481894823,3.04,187.7,187.57,2.99]
[1755481895018,8.3652,187.66,187.57,2.99]
[1755481895326,3.04,187.68,187.61,2.99]
[1755481895621,3.04,187.67,187.65,2.99]
[1755481896316,15.99,187.77,187.63,5.326]
[1755481896622,3.04,187.74,187.61,2.99]
[1755481896925,3.90907109,187.73,187.61,2.99]
[1755481897127,3.04,187.65,187.62,2.99]
[1755481897422,3.04,187.64,187.61,5.3266]
[1755481897622,15.99,187.74,187.62,2.99]
[1755481897832,3.04,187.72,187.62,2.99]
[1755481898131,3.04,187.63,187.61,2.99]
[1755481898426,3.04,187.73,187.55,2.99]
[1755481898724,15.99,187.74,187.55,2.99]
[1755481898725,3.04,187.65,187.55,2.99]
[1755481899115,3.04,187.65,187.59,2.99]
[1755481900220,3.04,187.73,187.59,2.99]
[1755481900418,3.04,187.71,187.59,2.99]
[1755481900623,3.04,187.69,187.59,2.99]
[1755481901927,15.99,187.76,187.58,8.32391966]
[1755481902227,3.04,187.74,187.59,2.99]
[1755481902426,3.04,187.72,187.59,2.99]
[1755481902626,5.3246,187.69,187.59,2.99]
[1755481902823,8.3646,187.69,187.59,2.99]
[1755481903122,3.04,187.69,187.66,5.325]
[1755481903430,3.04,187.71,187.63,2.99]
[1755481903620,3.04,187.71,187.62,8.32391966]
[1755481903816,3.04,187.8,187.68,2.99]
[1755481904020,3.04,187.78,187.68,2.99]
[1755481904222,3.04,187.76,187.68,2.99]
[1755481904725,3.04,187.76,187.7,5.324]
[1755481904919,3.04,187.76,187.69,2.99]
[1755481905326,5.3235,187.73,187.69,2.99]
[1755481905723,5.79481457,187.84,187.6,141.24]
[1755481905724,3.04,187.7,187.67,2.99]
[1755481905926,3.04,187.69,187.67,2.99]
[1755481906119,3.04,187.8,187.63,2.99]
[1755481906326,3.04,187.78,187.63,2.99]
[1755481906526,3.04,187.76,187.63,2.99]
[1755481906721,3.04,187.74,187.63,2.99]
[1755481906929,3.04,187.72,187.63,2.99]
[1755481907131,3.04,187.7,187.63,2.99]
[1755481908328,2.83,187.67,187.65,2.94]
[1755481908529,2.83,187.77,187.65,2.94]
[1755481908732,5.3247,187.68,187.65,2.94]
[1755481909032,2.83,187.67,187.65,2.94]
[1755481909428,2.83,187.67,187.66,2.94]
[1755481909824,8.32391966,187.78,187.66,8.2652]
[1755481910032,3.91696934,187.77,187.66,8.2652]
[1755481910229,3.91696934,187.76,187.66,8.2652]
[1755481910431,3.91696934,187.76,187.6,141.24]
[1755481910432,2.83,187.7,187.67,2.94]
[1755481910735,2.83,187.77,187.61,2.94]
[1755481910924,5.3243,187.7,187.65,5.3252]
[1755481911125,2.83,187.69,187.67,2.94]
[1755481911631,24.31391966,187.78,187.6,141.24]
[1755481911836,3.91656443,187.77,187.61,2.94]
[1755481912033,2.83,187.69,187.66,2.94]
[1755481912234,2.83,187.69,187.67,2.94]
[1755481913536,2.83,187.69,187.68,2.94]
[1755481914129,8.1543,187.7,187.68,2.94]
[1755481914537,5.79481457,187.8,187.63,8.32391966]
[1755481914538,5.3237,187.72,187.63,8.32391966]
[1755481914733,2.83,187.71,187.64,2.94]
[1755481915135,2.83,187.7,187.68,2.94]
[1755481915936,5.3241,187.7,187.68,2.94]
[1755481916139,2.83,187.69,187.66,5.3251]
[1755481916339,2.83,187.69,187.67,2.94]
[1755481916846,2.83,187.68,187.67,2.94]
[1755481918144,2.83,187.7,187.66,5.3251]
[1755481918350,2.83,187.69,187.66,5.3251]
[1755481918643,2.83,187.69,187.67,2.94]
[1755481919140,2.83,187.79,187.67,8.2648]
[1755481919342,2.83,187.77,187.67,2.94]
[1755481919538,2.83,187.75,187.67,2.94]
[1755481920548,2.83,187.75,187.6,149.56391966]
[1755481920549,2.83,187.73,187.65,2.94]
[1755481920738,2.83,187.78,187.69,2.94]
[1755481920936,2.83,187.78,187.59,10.6541]
[1755481920937,2.83,187.87,187.73,2.94]
[1755481921134,8.75289731,187.93,187.76,8.32391966]
[1755481921135,2.83,187.85,187.76,8.32391966]
[1755481921340,2.83,187.85,187.77,2.94]
[1755481922242,2.83,187.84,187.77,2.94]
[1755481922444,2.83,187.86,187.77,2.94]
[1755481923341,5.79481457,187.92,187.77,2.94]
[1755481923342,2.83,187.83,187.77,2.94]
[1755481923552,2.83,187.83,187.71,141.0]
[1755481923553,2.83,187.83,187.74,2.94]
[1755481923950,2.83,187.77,187.75,2.94]
[1755481924450,8.32391966,187.89,187.76,2.94]
[1755481924451,2.83,187.8,187.76,2.94]
[1755481924648,2.83,187.82,187.73,2.94]
[1755481925052,2.83,187.91,187.73,2.94]
[1755481925258,2.83,187.89,187.73,2.94]
[1755481925445,5.3216,187.79,187.75,5.3224]
[1755481925751,2.83,187.76,187.75,2.94]
[1755481926054,14.11873423,187.89,187.73,2.94]
[1755481926055,2.83,187.87,187.73,2.94]
[1755481926245,2.83,187.85,187.73,2.94]
[1755481926449,2.83,187.83,187.73,2.94]
[1755481926652,5.3226,187.76,187.73,2.94]
[1755481926847,2.83,187.81,187.72,2.94]
[1755481927151,2.83,187.79,187.72,2.94]
[1755481927352,5.3225,187.76,187.72,2.94]
[1755481927556,2.83,187.79,187.72,2.94]
[1755481928352,2.83,187.79,187.72,8.2634]
[1755481928752,2.83,187.76,187.74,2.94]
[1755481929557,8.1525,187.76,187.74,2.94]
[1755481929965,5.3226,187.75,187.74,2.94]
[1755481930150,2.83,187.75,187.74,2.94]
[1755481930554,8.1526,187.75,187.74,2.94]
[1755481931458,2.83,187.75,187.74,2.94]
[1755481933656,8.62481457,187.84,187.69,360.88]
[1755481933856,13.52787399,187.83,187.69,2.94]
[1755481934062,2.83,187.81,187.69,8.2641]
[1755481934364,2.83,187.79,187.69,8.2641]
[1755481934564,5.3235,187.72,187.7,2.94]
[1755481934755,8.1535,187.72,187.71,2.94]
[1755481934956,8.1535,187.72,187.69,2.94]
[1755481935151,2.83,187.71,187.7,2.94]
[1755481935354,5.3233,187.73,187.7,2.94]
[1755481935557,2.83,187.72,187.71,2.94]
[1755481936268,2.83,187.82,187.68,143.76]
[1755481936465,2.83,187.79,187.6,2.94]
[1755481936661,2.83,187.77,187.62,2.94]
[1755481936858,2.83,187.68,187.65,5.3254]
[1755481937156,2.83,187.68,187.61,140.78]
[1755481937157,2.83,187.68,187.67,2.94]
[1755481937358,2.83,187.68,187.62,2.94]
[1755481937562,8.62481457,187.77,187.62,2.94]
[1755481937763,7.73421665,187.76,187.62,2.94]
[1755481938061,3.08,187.74,187.62,2.94]
[1755481938261,3.08,187.72,187.62,2.94]
[1755481938468,3.08,187.7,187.61,140.78]
[1755481938664,5.326,187.63,187.61,140.78]
[1755481938863,8.406,187.63,187.61,143.7]
[1755481939264,14.11873423,187.75,187.61,140.78]
[1755481939265,3.08,187.73,187.61,140.78]
[1755481939463,3.08,187.6,187.55,2.92]
[1755481939660,23.71470446,187.72,187.56,2.92]
[1755481939661,3.08,187.71,187.56,2.92]
[1755481939967,5.3271,187.6,187.55,146.0881]
[1755481940160,3.08,187.59,187.58,2.92]
[1755481940868,8.4071,187.6,187.58,2.92]
[1755481941264,3.08,187.72,187.57,5.3275]
[1755481941463,3.08,187.7,187.58,2.92]
[1755481941668,3.08,187.68,187.58,2.92]
[1755481942058,3.08,187.68,187.58,8.32391966]
[1755481942263,3.08,187.68,187.59,2.92]
[1755481942970,5.3244,187.69,187.62,8.32391966]
[1755481943271,5.3244,187.69,187.63,2.92]
[1755481943660,8.4044,187.69,187.67,2.92]
[1755481944866,3.08,187.68,187.67,2.92]
[1755481945264,3.08,187.69,187.67,2.92]
[1755481945463,3.08,187.79,187.65,2.92]
[1755481945663,19.06,187.77,187.62,11.24391966]
[1755481945864,19.06,187.74,187.59,2.92]
[1755481946065,3.08,187.72,187.61,5.3266]
[1755481946269,5.79481457,187.76,187.61,5.3266]
[1755481946270,3.08,187.7,187.61,2.92]
[1755481946971,3.08,187.7,187.62,2.92]
[1755481947568,24.30391966,187.79,187.66,2.92]
[1755481947773,23.73793743,187.78,187.59,8.32391966]
[1755481947969,3.08,187.76,187.64,2.92]
[1755481948172,3.08,187.74,187.64,2.92]
[1755481948372,3.08,187.72,187.64,2.92]
[1755481948768,3.08,187.67,187.65,2.92]
[1755481949172,21.77481457,187.79,187.65,2.92]
[1755481949173,3.08,187.66,187.65,2.92]
[1755481949675,3.08,187.66,187.6,2.92]
[1755481949869,3.08,187.62,187.6,2.92]
[1755481950064,3.08,187.61,187.6,2.92]
[1755481950366,5.3271,187.6,187.56,2.92]
[1755481950567,19.06,187.69,187.56,2.92]
[1755481950766,3.08,187.67,187.56,2.92]
[1755481950976,5.3276,187.58,187.56,2.92]
[1755481951275,3.08,187.58,187.52,2.92]
[1755481952269,5.3278,187.57,187.47,140.64]
[1755481952571,3.08,187.57,187.5,2.92]
[1755481953276,8.4078,187.57,187.51,5.3294]
[1755481953468,8.4078,187.57,187.52,2.92]
[1755481954479,3.08,187.67,187.52,2.92]
[1755481954680,3.08,187.65,187.52,2.92]
[1755481955979,14.11873423,187.72,187.47,140.64]
[1755481956184,3.08,187.58,187.5,2.92]
[1755481956484,5.329,187.53,187.47,140.64]
[1755481956786,5.329,187.53,187.48,2.92]
[1755481956984,8.4093,187.52,187.49,2.92]
[1755481957184,3.08,187.51,187.49,2.92]
[1755481957486,8.4093,187.52,187.49,2.92]
[1755481957986,3.08,187.52,187.5,2.92]
[1755481958782,3.08,187.53,187.51,2.92]
[1755481958989,3.08,187.53,187.52,2.92]
[1755481959379,5.3285,187.55,187.52,2.92]
[1755481959380,3.08,187.54,187.52,2.92]
[1755481960186,8.4086,187.54,187.52,2.92]
[1755481960388,3.08,187.53,187.52,2.92]
[1755481960785,3.08,187.53,187.51,2.92]
[1755481961079,3.08,187.53,187.49,5.33]
[1755481961080,3.08,187.53,187.52,2.92]
[1755481961781,3.08,187.56,187.48,2.92]
[1755481961976,3.08,187.58,187.55,5.3282]
[1755481962178,3.08,187.58,187.57,2.92]
[1755481962878,3.08,187.58,187.54,2.92]
[1755481963084,3.08,187.58,187.52,2.92]
[1755481963281,3.08,187.58,187.52,8.2492]
[1755481963485,3.08,187.58,187.52,2.92]
[1755481964186,3.08,187.68,187.54,2.92]
[1755481964490,3.08,187.66,187.48,2.92]
[1755481964679,3.08,187.64,187.52,5.3289]